[Event "GER-ch Youth-U14 2022"]
[Site "Willingen"]
[Date "2022.06.10"]
[Round "8.10"]
[White "Luebke, Florentin"]
[Black "Huber, Benedikt"]
[Result "1/2-1/2"]
[ECO "C03"]
[WhiteElo "1613"]
[BlackElo "2288"]
[Annotator "TA"]
[PlyCount "127"]
[EventDate "2022.06.05"]
[EventType "swiss"]
[EventRounds "9"]
[EventCountry "GER"]
[SourceTitle "playchess.com"]
[Source "ChessBase"]
[SourceQuality "1"]
[TimeControl "40/4500+30:900+30"]

{[%evp 9,127,40,49,56,54,42,54,48,81,71,99,94,115,78,143,106,136,112,120,110,135,26,7,23,17,18,8,19,49,53,53,61,93,70,286,188,177,176,439,348,325,182,202,85,79,63,63,63,63,62,66,66,63,54,61,46,55,53,48,14,49,48,50,51,46,45,50,51,89,89,89,89,123,136,245,180,196,192,459,276,493,326,327,250,497,491,474,430,433,433,402,400,358,338,263,21,21,8,8,0,0,0,19,8,8,8,8,8,8,8,8,0,0,0,0,0,0,-8,-8,-8]} 1. e4 {[%emt 0:00:00]} e6 {[%emt 0:00:00]} 2. d4 {[%emt 0:00:00]} d5 {[%emt 0:00:00]} 3. Nd2 {[%emt 0:00:00]} h6 {[%emt 0:00:00]} 4. c3 {[%emt 0:00:00]} Nf6 {[%emt 0:00:00]} 5. e5 {[%emt 0:00:00]} Nfd7 {[%emt 0:00:00]} 6. Bd3 {[%emt 0:00:00] C03: French Tarrasch: Unusual Black 3rd moves.} c5 {[%emt 0:00:00] Against b4} 7. Ne2 {[%emt 0:00:00]} Nc6 {[%emt 0:00:00]} 8. O-O {[%emt 0:00:00] White is slightly better.} cxd4 {[%emt 0:00:00]} 9. cxd4 {[%emt 0:00:00]} Qb6 {[%emt 0:00:00]} 10. Nf3 {[%emt 0:00:00]} Be7 {[%emt 0:00:00]} 11. Re1 {[%emt 0:00:00]} O-O {[%emt 0:00:00]} ({Black should try} 11... Nb4) 12. a3 {[%emt 0:00:00] [#]} f6 $146 {[%emt 0:01:07][%cal Rf6e5]} ({Predecessor:} 12... Rd8 13. Ng3 Nf8 14. Nh5 Bd7 15. Qd2 {1-0 (15) Bystrov,N (1997)-Kupriyanov,A (2249) Nizhnij Novgorod 2011}) 13. exf6 {[%emt 0:00:00]} Bxf6 {[%emt 0:04:15]} 14. Qc2 {[%emt 0:06:01]} Bxd4 {[%emt 0:09:15]} 15. Bh7+ {[%emt 0:15:11]} (15. Nexd4 $16 Nxd4 16. Nxd4 Qxd4 17. Rxe6 (17. Bh7+ Kh8 $11)) 15... Kh8 $11 {[%emt 0:00:51]} 16. Nexd4 {[%emt 0:21:11]} Nxd4 {[%emt 0:00:12]} 17. Nxd4 {[%emt 0:00:48]} Qxd4 {[%emt 0:00:10]} 18. Be3 {[%emt 0:02:15]} Qf6 {[%emt 0:01:08]} 19. Rad1 {[%emt 0:01:11][%mdl 1024] White has compensation.} b6 {[%emt 0:03:42]} 20. Qc6 {[%emt 0:03:28] Against Bb7} Rb8 {[%emt 0:05:13]} 21. Bb1 {[%emt 0:02:05] White is much more active.} Rd8 $2 {[%emt 0:10:49]} (21... Nc5 $14) 22. Bd4 {[%emt 0:02:15]} e5 {[%emt 0:07:18]} 23. Qc2 {[%emt 0:00:26][%csl Gb1][%cal Rc2h7]} Kg8 {[%emt 0:08:40]} (23... g6) 24. Qh7+ {[%emt 0:04:10]} Kf7 {[%emt 0:05:10] [#]} 25. Re3 $1 {[%emt 0:00:38]} Nf8 {[%emt 0:06:44]} (25... exd4 26. Rf3) 26. Qd3 {[%emt 0:01:30]} (26. Qc2 $18 exd4 27. Rf3 Qxf3 28. gxf3) 26... Ng6 $16 {[%emt 0:03:50]} (26... exd4 $2 27. Rf3 $18) 27. Qxg6+ {[%emt 0:06:23]} Qxg6 {[%emt 0:00:05]} 28. Bxg6+ {[%emt 0:00:10]} Kxg6 {[%emt 0:00:04]} 29. Rxe5 {[%emt 0:00:39]} Rd7 {[%emt 0:07:06]} 30. Re8 {[%emt 0:01:40]} Ra8 {[%emt 0:02:12]} 31. Rc1 {[%emt 0:02:18]} Bb7 {[%emt 0:00:48]} 32. Re3 {[%emt 0:01:43]} Rc8 {[%emt 0:01:02]} 33. Rxc8 {[%emt 0:00:47]} Bxc8 $14 {[%emt 0:00:12][%mdl 4096] Endgame KRB-KRB} 34. f4 {[%emt 0:00:59]} Kf7 {[%emt 0:03:03]} 35. Rc3 {[%emt 0:00:34]} Bb7 {[%emt 0:00:44]} 36. Kf2 {[%emt 0:00:29]} Re7 {[%emt 0:01:20]} 37. Be5 {[%emt 0:00:42]} Rd7 {[%emt 0:03:04]} 38. g4 {[%emt 0:00:51]} Ba6 {[%emt 0:02:03] [#]} 39. Ke3 $1 {[%emt 0:00:41]} Bb7 {[%emt 0:00:46]} 40. Kd4 {[%emt 0:00:19]} Ke8 {[%emt 0:01:16]} 41. h4 {[%emt 0:15:34][%cal Bh2h4,Bh4h5][%mdl 32] Hoping for g5.} Rf7 {[%emt 0:18:11]} (41... g6 $16 {was worth a try.} 42. Rg3 Rf7) 42. h5 {[%emt 0:02:41]} Re7 {[%emt 0:00:00]} 43. b4 {[%emt 0:00:00]} Kd8 $2 {[%emt 0:00:00]} (43... Ba6 44. g5 (44. Kxd5 Kf7 $16) 44... Bb5 45. gxh6 (45. Kxd5 Bd7 $16) 45... gxh6 46. Rc8+ (46. Kxd5 Bd7 $16) 46... Kf7) 44. a4 {[%emt 0:00:00] And now g5 would win.} Rf7 $2 {[%emt 0:00:00]} (44... Ke8 45. g5 Kf7 46. gxh6 gxh6) 45. b5 {[%emt 0:00:00] Black must now prevent g5.} Bc8 {[%emt 0:00:00]} 46. Rg3 {[%emt 0:00:00]} ({Inferior is} 46. Kxd5 Bxg4 47. Rg3 Bxh5 $11) 46... a6 $2 {[%emt 0:00:00]} (46... Ke8 {was called for.} 47. Kxd5 Bb7+ 48. Kc4 Re7) 47. g5 $18 {[%emt 0:00:00]} axb5 {[%emt 0:00:00]} 48. axb5 {[%emt 0:00:00]} Rf5 {[%emt 0:00:00]} 49. gxh6 {[%emt 0:00:00]} ({Don't do} 49. g6 Rxh5 50. Bxg7 Bf5 51. Bf6+ Ke8 $18) 49... gxh6 {[%emt 0:00:22]} 50. Rg8+ {[%emt 0:00:00]} Kd7 {[%emt 0:00:07]} 51. Rg7+ {[%emt 0:00:00]} ({Not} 51. Kxd5 Bb7+ 52. Kd4 Bc8 $18) 51... Ke8 {[%emt 0:00:44]} 52. Rc7 {[%emt 0:00:00]} (52. Kxd5 $18 Bd7 53. Rg6 Rxh5 54. Rxb6) 52... Bd7 $11 {[%emt 0:00:41] The position is equal.} 53. Kxd5 {[%emt 0:00:00] Strongly threatening Kd6.} Rxh5 {[%emt 0:00:57]} 54. Rb7 {[%emt 0:00:00] Threatens to win with Rb8+.} Bxb5 {[%emt 0:01:02]} 55. Rxb6 {[%emt 0:00:00]} Be2 {[%emt 0:00:17]} 56. Rb8+ {[%emt 0:00:00]} Kf7 {[%emt 0:00:53]} 57. Rb7+ {[%emt 0:00:00]} Kg6 {[%emt 0:00:36] ...Bf3+ is the strong threat.} 58. Ke4 {[%emt 0:00:00][%csl Ge5][%cal Rb7g7] Inhibits Bf3+.} Rh4 {[%emt 0:01:37]} 59. Rg7+ {[%emt 0:00:00]} Kh5 {[%emt 0:00:09]} 60. Kf5 {[%emt 0:00:00]} Bd3+ {[%emt 0:00:33]} 61. Ke6 {[%emt 0:00:00]} Rg4 {[%emt 0:00:29]} 62. Rc7 {[%emt 0:00:00]} Rg6+ {[%emt 0:01:13]} 63. Ke7 {[%emt 0:00:00]} Kg4 {[%emt 0:00:21]} 64. Rd7 {[%emt 0:00:00] Blacks defense is rewarded with a draw.  Weighted Error Value: White=0.30/Black=0.42} 1/2-1/2

[Event "GER-ch Youth-U14 2022"]
[Site "Willingen"]
[Date "2022.06.10"]
[Round "8.11"]
[White "Wunderlich, Elias"]
[Black "Uhlmann, Tim"]
[Result "1-0"]
[ECO "C86"]
[WhiteElo "1619"]
[BlackElo "1776"]
[Annotator "NA RC COMBH"]
[PlyCount "91"]
[EventDate "2022.06.05"]
[EventType "swiss"]
[EventRounds "9"]
[EventCountry "GER"]
[SourceTitle "playchess.com"]
[Source "ChessBase"]
[SourceQuality "1"]
[TimeControl "40/4500+30:900+30"]

1. e4 {[%emt 0:00:00]} e5 {[%emt 0:00:00]} 2. Nf3 {[%emt 0:00:00]} Nc6 {[%emt 0:00:00]} 3. Bb5 {[%emt 0:00:00]} a6 {[%emt 0:00:00]} 4. Ba4 {[%emt 0:00:00]} Nf6 {[%emt 0:00:00]} 5. O-O {[%emt 0:00:00]} Be7 {[%emt 0:00:00]} 6. Qe2 {[%emt 0:00:00]} b5 {[%emt 0:00:00]} 7. Bb3 {[%emt 0:00:00]} O-O {[%emt 0:00:00]} 8. c3 {[%emt 0:00:00]} d5 {[%emt 0:00:00]} 9. d3 {[%emt 0:00:00]} dxe4 {[%emt 0:00:00]} 10. dxe4 {[%emt 0:00:00]} Bb7 {[%emt 0:00:00]} 11. Rd1 {[%emt 0:00:00]} Bd6 {[%emt 0:00:00]} 12. Bg5 {[%emt 0:00:00]} h6 {[%emt 0:00:00]} 13. Bh4 {[%emt 0:00:00]} Qe7 {[%emt 0:01:59]} 14. Nbd2 {[%emt 0:00:00]} g5 {[%emt 0:02:31]} 15. Nxg5 {[%emt 0:00:00]} hxg5 {[%emt 0:00:09]} 16. Bxg5 {[%emt 0:00:00]} Kg7 {[%emt 0:04:13]} 17. Qf3 {[%emt 0:00:00]} Na5 {[%emt 0:03:55]} 18. Bd5 {[%emt 0:12:41]} c6 {[%emt 0:03:17]} 19. Nf1 {[%emt 0:02:12]} Rh8 {[%emt 0:27:09]} 20. Ne3 {[%emt 0:13:20]} cxd5 {[%emt 0:11:13]} 21. Nf5+ {[%emt 0:00:12]} Kg6 {[%emt 0:00:11]} 22. Nxe7+ {[%emt 0:00:10]} Bxe7 {[%emt 0:00:02]} 23. Qf5+ {[%emt 0:00:20]} Kg7 {[%emt 0:00:37]} 24. Qxe5 {[%emt 0:00:43]} Rae8 {[%emt 0:02:21]} 25. b4 {[%emt 0:04:07]} Nc4 {[%emt 0:02:24]} 26. Qc7 {[%emt 0:00:29]} Bc8 {[%emt 0:01:31]} 27. e5 {[%emt 0:05:34]} Nd7 {[%emt 0:00:53]} 28. Bxe7 {[%emt 0:04:39]} Rxe7 29. Rxd5 {[%emt 0:00:23]} Rhe8 {[%emt 0:08:18]} 30. e6 {[%emt 0:01:47]} Nde5 {[%emt 0:06:07]} 31. Qc5 {[%emt 0:00:56]} Rxe6 {[%emt 0:00:19]} 32. f4 {[%emt 0:03:57]} Nc6 {[%emt 0:02:17]} 33. Rg5+ {[%emt 0:01:08]} Kh6 {[%emt 0:05:02]} 34. Qf2 {[%emt 0:03:22]} Kh7 {[%emt 0:01:02]} 35. f5 {[%emt 0:01:27]} Rh6 {[%emt 0:02:18]} 36. Re1 {[%emt 0:00:59]} N6e5 {[%emt 0:00:29]} 37. Qg3 {[%emt 0:08:16]} Bd7 {[%emt 0:01:10]} 38. Rg7+ {[%emt 0:02:43]} Kh8 {[%emt 0:00:31]} 39. Qg5 {[%emt 0:01:28]} Rg6 {[%emt 0:01:49]} 40. fxg6 {[%emt 0:02:54]} Kxg7 {[%emt 0:00:10]} 41. gxf7+ {[%emt 0:15:31]} Kxf7 {[%emt 0:15:07]} 42. Rf1+ {[%emt 0:00:19]} Ke6 {[%emt 0:00:17]} 43. Qh6+ {[%emt 0:01:22]} Kd5 {[%emt 0:00:43]} 44. Rd1+ {[%emt 0:00:09]} Ke4 {[%emt 0:00:25]} 45. Rd4+ {[%emt 0:00:11]} Kf5 {[%emt 0:00:22]} 46. Rf4# 1-0

[Event "GER-ch Youth-U14 2022"]
[Site "Willingen"]
[Date "2022.06.10"]
[Round "8.12"]
[White "Chinguun Sundui"]
[Black "Mueller, Maximilian"]
[Result "0-1"]
[ECO "C00"]
[WhiteElo "1731"]
[BlackElo "2299"]
[Annotator "TA"]
[PlyCount "67"]
[EventDate "2022.06.05"]
[EventType "swiss"]
[EventRounds "9"]
[EventCountry "GER"]
[SourceTitle "playchess.com"]
[Source "ChessBase"]
[SourceQuality "1"]
[TimeControl "40/4500+30:900+30"]

{[%evp 14,67,-29,-49,0,0,-1,-58,-50,-45,-7,-51,-12,-99,-19,-19,-26,-117,-14,-25,-32,-42,-31,-198,-179,-190,-10,-16,-16,-165,-148,-224,-227,-222,-9,-294,-316,-344,-322,-345,221,-596,-579,-2153,-2024,-2155,-2138,-1872,-1584,-1609,-1595,-1573,-1539,-29974,-29963,-29996]} 1. e4 {[%emt 0:00:00]} e6 {[%emt 0:00:00]} 2. Nf3 {[%emt 0:00:00]} d5 {[%emt 0:00:00]} 3. e5 {[%emt 0:00:00]} c5 {[%emt 0:00:00]} 4. b4 {[%emt 0:00:00]} cxb4 {[%emt 0:00:00]} 5. a3 {[%emt 0:00:00]} bxa3 {[%emt 0:00:00]} 6. d4 {[%emt 0:00:00]} Bd7 {[%emt 0:00:00]} 7. c3 {[%emt 0:00:00]} Nc6 {[%emt 0:00:00]} 8. Bd3 {[%emt 0:00:00]} Rc8 {[%emt 0:03:16] C00: French: Unusual White 2nd moves.} (8... b5 $15 {is more appropriate.}) 9. O-O $11 {[%emt 0:00:00]} a6 {[%emt 0:01:01] [#]} 10. h4 $146 {[%emt 0:05:06]} (10. Ng5 $11) ({Predecessor:} 10. Re1 Na5 11. Ng5 Nc4 12. Qh5 g6 13. Qf3 Qe7 14. Qg3 Nh6 15. Nxa3 Na5 16. Nb5 Bxb5 17. Bxb5+ axb5 18. Rxa5 {0-1 (48) Popadic,D (2157)-Aitbayev,A (2475) Chess.com INT 2021}) 10... h6 {[%emt 0:12:16] Black is slightly better.} (10... Na7 {is interesting.} 11. Ng5 Bb5 12. Qh5 g6) 11. h5 {[%emt 0:09:34]} b5 {[%emt 0:02:53]} 12. g3 {[%emt 0:16:43]} Be7 {[%emt 0:04:15]} 13. Nh2 {[%emt 0:16:58]} (13. Qe2 $11) 13... Qb6 {[%emt 0:01:14]} (13... b4 $17 {aiming for ...a5.} 14. Bxa6 Ra8) 14. Qg4 {[%emt 0:05:31]} Kf8 {[%emt 0:02:48] Hoping for ...b4.} 15. Be3 {[%emt 0:09:21]} (15. Nxa3 $11 {keeps the balance.} b4 16. cxb4 (16. Nc2 a5 $15)) 15... Qa5 {[%emt 0:08:00]} ({Better is} 15... b4 $17 {And now ...b3 would win.} 16. cxb4 Nxb4 17. Rxa3 a5) 16. Rc1 {[%emt 0:08:38]} a2 {[%emt 0:16:51]} 17. Nd2 {[%emt 0:00:16]} b4 {[%emt 0:00:32]} 18. c4 {[%emt 0:01:57] [#]} ({White should play} 18. Nb3 $15 Qa4 19. Qd1) 18... Qa3 $1 $19 {[%emt 0:01:47]} 19. cxd5 {[%emt 0:04:00]} Na5 {[%emt 0:01:20]} (19... Qxd3 $19 20. dxc6 Rxc6) 20. Rxc8+ $11 {[%emt 0:02:27]} Bxc8 {[%emt 0:00:01] The board is on fire.} 21. Qe2 {[%emt 0:02:07]} (21. dxe6 $1 $11 {and White is okay.} Qb2 22. Qd1 Bxe6 23. Be4) 21... Qb2 $36 {[%emt 0:01:17][%mdl 2048] Black is really pushing.} (21... exd5 22. Bxa6 Qb2 23. Rxa2 Qxa2 24. Bxc8 $17) 22. Qd1 {[%emt 0:00:58]} (22. Nb3 $17 {might work better.} Qxb3 23. Qxa2) 22... exd5 {[%emt 0:02:32][%cal Be6d5,Bd5c4,Bc4b3][%mdl 32]} 23. Bc2 {[%emt 0:01:30] Prevents b3.} Nc4 $2 {[%emt 0:06:17]} (23... Bd8 $19 {Strongly threatening ...Bd7.} 24. Qc1 Qxc1+ 25. Rxc1 Ne7) 24. Nxc4 $4 {[%emt 0:01:09][%mdl 8192]} (24. Bb3 $11 Nxd2 25. Bxd2 Qxd4 26. Nf3) 24... dxc4 {[%emt 0:00:09]} 25. d5 {[%emt 0:01:14] Bd4 is the strong threat.} b3 {[%emt 0:07:48]} (25... Qxe5 26. Bf4 Qb2 27. d6 $11) 26. d6 {[%emt 0:00:22]} Bd8 {[%emt 0:00:05][%mdl 8192] [#]} ({And not} 26... Qxe5 27. dxe7+ Kxe7 28. Qe1 bxc2 29. Rxa2 $15) (26... Bg5 $19 {avoids the disaster.} 27. Bd4 Qxc2 28. Qxc2 bxc2) 27. Bxb3 $4 {[%emt 0:00:36][%mdl 8192]} cxb3 {[%emt 0:03:06]} 28. f4 {[%emt 0:00:32]} Bb7 {[%emt 0:00:15][%csl Gb7][%cal Rb2g2]} 29. Bf2 {[%emt 0:00:23] [#]} Bb6 $1 {[%emt 0:00:24][%csl Gb6][%cal Rb2f2]} 30. Ng4 {[%emt 0:00:09] [#]} g6 $1 {[%emt 0:05:16][%cal Ob2c3] White must now prevent ...Qc3!} 31. d7 {[%emt 0:00:45] [#]} Kg7 $1 {[%emt 0:00:10][%cal Og8e7]} 32. hxg6 {[%emt 0:00:41] [#]} (32. d8=Q Bxd8) 32... fxg6 $1 {[%emt 0:00:36][%cal Og8e7] Threatens to win with ...Ne7!} 33. e6 {[%emt 0:00:32] [#]} (33. d8=Q Bxd8) 33... Nf6 $1 {[%emt 0:00:28]} 34. Qf1 {[%emt 0:00:00] Weighted Error Value: White=1.34/Black=0.78} (34. Kf1 Nxg4) 0-1

[Event "GER-ch Youth-U14 2022"]
[Site "Willingen"]
[Date "2022.06.10"]
[Round "8.13"]
[White "Kieselbach, Jannik"]
[Black "Deschler, Arne"]
[Result "0-1"]
[ECO "B19"]
[WhiteElo "1631"]
[BlackElo "1646"]
[Annotator "NA RC COMBH"]
[PlyCount "126"]
[EventDate "2022.06.05"]
[EventType "swiss"]
[EventRounds "9"]
[EventCountry "GER"]
[SourceTitle "playchess.com"]
[Source "ChessBase"]
[SourceQuality "1"]
[TimeControl "40/4500+30:900+30"]

1. e4 {[%emt 0:00:00]} c6 {[%emt 0:00:00]} 2. d4 {[%emt 0:00:00]} d5 {[%emt 0:00:00]} 3. Nc3 {[%emt 0:00:00]} dxe4 {[%emt 0:00:00]} 4. Nxe4 {[%emt 0:00:00]} Bf5 {[%emt 0:00:00]} 5. Ng3 {[%emt 0:00:00]} Bg6 {[%emt 0:00:00]} 6. h4 {[%emt 0:00:00]} h6 {[%emt 0:00:00]} 7. Nf3 {[%emt 0:00:00]} Nd7 {[%emt 0:00:00]} 8. h5 {[%emt 0:00:00]} Bh7 {[%emt 0:00:00]} 9. Bd3 {[%emt 0:00:00]} Bxd3 {[%emt 0:00:00]} 10. Qxd3 {[%emt 0:00:00]} e6 {[%emt 0:00:00]} 11. Bd2 {[%emt 0:00:00]} Ngf6 {[%emt 0:00:00]} 12. O-O-O {[%emt 0:00:00]} Qc7 {[%emt 0:00:00]} 13. Kb1 {[%emt 0:00:00]} O-O-O {[%emt 0:00:00]} 14. Ne4 {[%emt 0:00:00]} Be7 {[%emt 0:00:00]} 15. g3 {[%emt 0:00:00]} c5 {[%emt 0:00:00]} 16. Bf4 {[%emt 0:00:00]} Qc6 {[%emt 0:00:00]} 17. Nxf6 {[%emt 0:00:00]} Bxf6 {[%emt 0:00:00]} 18. d5 {[%emt 0:02:17]} exd5 {[%emt 0:00:13]} 19. Qxd5 {[%emt 0:00:40]} Qb6 {[%emt 0:05:46]} 20. Qb3 {[%emt 0:01:12]} Qxb3 {[%emt 0:02:16]} 21. axb3 {[%emt 0:00:12]} Rhe8 {[%emt 0:04:35]} 22. Rhe1 {[%emt 0:01:49]} Nb6 {[%emt 0:07:04]} 23. Rxd8+ {[%emt 0:02:31]} Kxd8 {[%emt 0:03:10]} 24. Be3 {[%emt 0:09:57]} Nd7 {[%emt 0:03:48]} 25. c3 {[%emt 0:02:58]} Ne5 {[%emt 0:04:51]} 26. Nxe5 {[%emt 0:00:54]} Rxe5 {[%emt 0:01:32]} 27. f4 {[%emt 0:02:02]} Rxh5 {[%emt 0:02:14]} 28. g4 {[%emt 0:00:50]} Rh4 {[%emt 0:02:52]} 29. g5 {[%emt 0:04:08]} hxg5 {[%emt 0:03:17]} 30. fxg5 {[%emt 0:00:14]} Be7 {[%emt 0:00:36]} 31. Rf1 {[%emt 0:05:02]} Re4 {[%emt 0:05:28]} 32. Bd2 {[%emt 0:00:37]} Ke8 {[%emt 0:03:22]} 33. Kc2 {[%emt 0:00:17]} Re5 {[%emt 0:01:32]} 34. Rg1 {[%emt 0:00:46]} g6 {[%emt 0:03:17]} 35. Kd3 {[%emt 0:04:32]} Rd5+ {[%emt 0:02:24]} 36. Ke2 {[%emt 0:00:21]} Kd7 {[%emt 0:02:51]} 37. Be3 {[%emt 0:02:41]} Ke6 {[%emt 0:04:33]} 38. Kf3 {[%emt 0:00:25]} Rf5+ {[%emt 0:08:16]} 39. Ke4 {[%emt 0:00:28]} Re5+ {[%emt 0:00:14]} 40. Kf3 {[%emt 0:00:29]} a6 {[%emt 0:09:26]} 41. Rg2 {[%emt 0:16:37]} Rd5 {[%emt 0:19:59]} 42. Rg1 {[%emt 0:00:45]} Rf5+ {[%emt 0:00:26]} 43. Ke4 {[%emt 0:00:52]} Re5+ {[%emt 0:00:04]} 44. Kf3 {[%emt 0:01:04]} Kf5 {[%emt 0:03:27]} 45. Bd2 {[%emt 0:00:20]} Rd5 {[%emt 0:00:32]} 46. Be3 {[%emt 0:00:21]} Rd3 {[%emt 0:00:31]} 47. Ke2 {[%emt 0:02:16]} Rd8 {[%emt 0:02:41]} 48. Rf1+ {[%emt 0:00:50]} Ke6 {[%emt 0:00:08]} 49. Rh1 {[%emt 0:00:38]} Kf5 {[%emt 0:02:43]} 50. Rf1+ {[%emt 0:00:39]} Ke6 {[%emt 0:00:04]} 51. Rh1 {[%emt 0:00:11]} Rf8 {[%emt 0:00:17]} 52. Kf3 {[%emt 0:00:47]} Kf5 {[%emt 0:00:20]} 53. Rg1 {[%emt 0:01:11]} Rh8 {[%emt 0:01:08]} 54. Rd1 {[%emt 0:02:40]} Rh3+ {[%emt 0:00:00]} 55. Ke2 {[%emt 0:00:00]} Rh2+ {[%emt 0:00:00]} 56. Kf3 {[%emt 0:00:00]} Ke6 {[%emt 0:00:00]} 57. Re1 {[%emt 0:00:00]} Kd7 {[%emt 0:00:00]} 58. Rd1+ {[%emt 0:00:00]} Ke6 {[%emt 0:00:00]} 59. Re1 {[%emt 0:00:00]} Kd7 {[%emt 0:00:00]} 60. Rd1+ {[%emt 0:00:00]} Kc6 {[%emt 0:00:00]} 61. Bd2 {[%emt 0:00:00]} Rh3+ {[%emt 0:00:00]} 62. Kf4 {[%emt 0:00:00]} Rd3 {[%emt 0:00:00]} 63. c4 {[%emt 0:00:00]} Rd4+ {[%emt 0:00:00]} 0-1

[Event "GER-ch Youth-U14 2022"]
[Site "Willingen"]
[Date "2022.06.10"]
[Round "8.14"]
[White "Fruth, David"]
[Black "Weyerer, Noah"]
[Result "1-0"]
[ECO "C10"]
[WhiteElo "1648"]
[BlackElo "1555"]
[Annotator "NA RC COMBH"]
[PlyCount "83"]
[EventDate "2022.06.05"]
[EventType "swiss"]
[EventRounds "9"]
[EventCountry "GER"]
[SourceTitle "playchess.com"]
[Source "ChessBase"]
[SourceQuality "1"]
[TimeControl "40/4500+30:900+30"]

1. e4 {[%emt 0:00:00]} e6 {[%emt 0:00:00]} 2. d4 {[%emt 0:00:00]} d5 {[%emt 0:00:00]} 3. Nc3 {[%emt 0:00:00]} dxe4 {[%emt 0:00:00]} 4. Nxe4 {[%emt 0:00:00]} Nd7 {[%emt 0:00:00]} 5. g3 {[%emt 0:00:00]} Ngf6 {[%emt 0:00:00]} 6. Nxf6+ {[%emt 0:00:00]} Nxf6 {[%emt 0:00:00]} 7. Bg2 {[%emt 0:00:00]} c5 {[%emt 0:00:00]} 8. Ne2 {[%emt 0:09:46]} cxd4 {[%emt 0:00:00]} 9. Qxd4 {[%emt 0:03:46]} Qxd4 {[%emt 0:00:00]} 10. Nxd4 {[%emt 0:00:04]} a6 {[%emt 0:00:43]} 11. O-O {[%emt 0:02:04]} Bc5 {[%emt 0:06:10]} 12. Nb3 {[%emt 0:02:45]} Bd6 {[%emt 0:06:29]} 13. Be3 {[%emt 0:03:35]} Ke7 {[%emt 0:04:14]} 14. Na5 {[%emt 0:04:47]} Rb8 {[%emt 0:02:21]} 15. Nc4 {[%emt 0:08:07]} Bd7 {[%emt 0:09:30]} 16. Nxd6 {[%emt 0:02:30]} Kxd6 {[%emt 0:03:17]} 17. Bf4+ {[%emt 0:00:53]} e5 {[%emt 0:00:58]} 18. Rad1+ {[%emt 0:00:10]} Ke7 {[%emt 0:03:31]} 19. Bxe5 {[%emt 0:00:14]} Rbc8 {[%emt 0:01:21]} 20. c3 {[%emt 0:06:22]} Rc6 {[%emt 0:06:16]} 21. Bxc6 {[%emt 0:03:20]} Bxc6 {[%emt 0:02:26]} 22. Rfe1 {[%emt 0:00:49]} Ke6 {[%emt 0:01:43]} 23. g4 {[%emt 0:08:18]} Bf3 {[%emt 0:10:46]} 24. Bg3+ {[%emt 0:02:08]} Ne4 {[%emt 0:06:50]} 25. Rd3 {[%emt 0:00:06]} Bxg4 {[%emt 0:00:53]} 26. Rxe4+ {[%emt 0:00:06]} Kf5 {[%emt 0:00:26]} 27. Rf4+ {[%emt 0:00:05]} Kg5 {[%emt 0:00:06]} 28. Rd5+ {[%emt 0:00:23]} f5 {[%emt 0:01:02]} 29. f3 {[%emt 0:00:05]} Bh3 {[%emt 0:00:33]} 30. Rh4 {[%emt 0:00:10]} Re8 {[%emt 0:00:19]} 31. Rxh3 {[%emt 0:00:03]} Re2 {[%emt 0:00:14]} 32. f4+ {[%emt 0:00:31]} Kg4 {[%emt 0:00:35]} 33. Rxh7 {[%emt 0:00:46]} Rxb2 {[%emt 0:00:30]} 34. Rd3 {[%emt 0:00:25]} Rb1+ {[%emt 0:01:18]} 35. Kf2 {[%emt 0:00:02]} Rb2+ {[%emt 0:00:10]} 36. Ke1 {[%emt 0:00:02]} Rb1+ {[%emt 0:00:33]} 37. Kd2 {[%emt 0:00:07]} Rb2+ {[%emt 0:00:02]} 38. Kc1 {[%emt 0:00:01]} Rxh2 {[%emt 0:00:07]} 39. Rxh2 {[%emt 0:00:10]} g5 {[%emt 0:00:11]} 40. Rg2 {[%emt 0:00:26]} gxf4 {[%emt 0:00:20]} 41. Be1+ {[%emt 0:15:01]} Kh5 {[%emt 0:15:22]} 42. Rh3# 1-0

[Event "GER-ch Youth-U14 2022"]
[Site "Willingen"]
[Date "2022.06.10"]
[Round "8.15"]
[White "Vihan, Shourya"]
[Black "Sauer, Tim"]
[Result "0-1"]
[ECO "D10"]
[WhiteElo "1385"]
[BlackElo "1769"]
[Annotator "NA RC COMBH"]
[PlyCount "90"]
[EventDate "2022.06.05"]
[EventType "swiss"]
[EventRounds "9"]
[EventCountry "GER"]
[SourceTitle "playchess.com"]
[Source "ChessBase"]
[SourceQuality "1"]
[TimeControl "40/4500+30:900+30"]

1. d4 {[%emt 0:00:00]} d5 {[%emt 0:00:00]} 2. c4 {[%emt 0:00:00]} c6 {[%emt 0:00:00]} 3. Nc3 {[%emt 0:00:00]} Nf6 {[%emt 0:00:00]} 4. cxd5 {[%emt 0:00:00]} cxd5 {[%emt 0:00:00]} 5. Bf4 {[%emt 0:00:00]} Nc6 {[%emt 0:00:00]} 6. e3 {[%emt 0:00:00]} Bf5 {[%emt 0:00:00]} 7. Qb3 {[%emt 0:00:00]} Na5 {[%emt 0:00:00]} 8. Qa4+ {[%emt 0:00:00]} Bd7 {[%emt 0:00:00]} 9. Qc2 {[%emt 0:00:00]} Rc8 {[%emt 0:00:00]} 10. Bd3 {[%emt 0:00:00]} e6 {[%emt 0:00:00]} 11. Nge2 {[%emt 0:00:00]} b5 {[%emt 0:00:00]} 12. a3 {[%emt 0:04:25]} Be7 {[%emt 0:02:13]} 13. h3 {[%emt 0:06:12]} h6 {[%emt 0:02:01]} 14. O-O {[%emt 0:00:50]} O-O {[%emt 0:00:12]} 15. b3 {[%emt 0:05:11]} Qb6 {[%emt 0:01:01]} 16. Qb2 {[%emt 0:04:09]} a6 {[%emt 0:10:53]} 17. Rfc1 {[%emt 0:10:11]} Bd6 {[%emt 0:01:03]} 18. Bxd6 {[%emt 0:06:35]} Qxd6 {[%emt 0:00:05]} 19. Rc2 {[%emt 0:04:58]} g5 {[%emt 0:22:40]} 20. Rcc1 {[%emt 0:07:01]} Nh5 {[%emt 0:03:22]} 21. e4 {[%emt 0:06:30]} Nf4 {[%emt 0:03:07]} 22. Nxf4 {[%emt 0:01:28]} Qxf4 {[%emt 0:00:25]} 23. Ne2 {[%emt 0:01:47]} Qd6 {[%emt 0:02:26]} 24. e5 {[%emt 0:01:07]} Qb6 {[%emt 0:02:30]} 25. Ng3 {[%emt 0:01:58]} Nxb3 {[%emt 0:11:21]} 26. Qxb3 {[%emt 0:04:41]} Qxd4 {[%emt 0:00:33]} 27. Ne2 {[%emt 0:03:04]} Qxe5 {[%emt 0:01:18]} 28. a4 {[%emt 0:01:02]} bxa4 {[%emt 0:02:07]} 29. Qb7 {[%emt 0:00:21]} Rxc1+ {[%emt 0:02:42]} 30. Rxc1 {[%emt 0:00:18]} Bb5 {[%emt 0:01:22]} 31. Bxb5 {[%emt 0:00:39]} axb5 {[%emt 0:00:20]} 32. Qxb5 {[%emt 0:00:06]} Rb8 {[%emt 0:00:25]} 33. Qa6 {[%emt 0:01:17]} Qb2 {[%emt 0:03:27]} 34. Qd3 {[%emt 0:03:47]} a3 {[%emt 0:03:50]} 35. Qd1 {[%emt 0:02:45]} a2 {[%emt 0:09:09]} 36. Nc3 {[%emt 0:00:06]} a1=Q {[%emt 0:00:57]} 37. Rxa1 {[%emt 0:00:12]} Qxc3 {[%emt 0:00:07]} 38. Rc1 {[%emt 0:00:13]} Qe5 {[%emt 0:00:15]} 39. Qa4 {[%emt 0:00:31]} Kg7 {[%emt 0:00:58]} 40. Qa7 {[%emt 0:00:23]} Rb4 {[%emt 0:00:22]} 41. g3 {[%emt 0:15:20]} Re4 {[%emt 0:16:09]} 42. Kg2 {[%emt 0:00:44]} Re2 {[%emt 0:01:38]} 43. Rc7 {[%emt 0:00:37]} Qe4+ {[%emt 0:00:49]} 44. Kh2 {[%emt 0:00:09]} Qf3 {[%emt 0:00:11]} 45. Qd4+ {[%emt 0:00:25]} e5 {[%emt 0:00:20]} 0-1